[Event "DVM U14 2024"]
[Site "Heidelberg"]
[Date "2024.12.29"]
[Round "6"]
[White "Obermair, Hannes"]
[Black "Belenki, Janis"]
[Result "0-1"]
[ECO "D38"]
[WhiteElo "1653"]
[BlackElo "1611"]
[Annotator "NA RC"]
[PlyCount "84"]
[EventDate "2024.12.23"]
[EventType "team-tourn"]
[EventRounds "7"]
[EventCountry "GER"]
[SourceTitle "playchess.com"]
[Source "ChessBase"]
[SourceQuality "1"]
[TimeControl "40/5400+30:1800+30"]

1. c4 {[%emt 0:00:02]} Nf6 {[%emt 0:00:05]} 2. d4 {[%emt 0:00:03]} e6 {[%emt 0:00:04]} 3. Nc3 {[%emt 0:00:06]} Bb4 {[%emt 0:00:10]} 4. Nf3 {[%emt 0:00:35]} d5 {[%emt 0:00:40]} 5. Bg5 {[%emt 0:01:12]} Bxc3+ {[%emt 0:00:47]} 6. bxc3 {[%emt 0:00:15]} h6 {[%emt 0:01:29]} 7. Bxf6 {[%emt 0:00:56]} Qxf6 {[%emt 0:00:10]} 8. e3 {[%emt 0:00:37]} c5 {[%emt 0:01:50]} 9. Be2 {[%emt 0:03:05]} O-O {[%emt 0:04:38]} 10. Rc1 {[%emt 0:02:28]} Rd8 {[%emt 0:03:08]} 11. O-O {[%emt 0:01:07]} Nc6 {[%emt 0:03:57]} 12. h3 {[%emt 0:07:29]} dxc4 {[%emt 0:23:04]} 13. Qa4 {[%emt 0:13:46]} e5 {[%emt 0:11:18]} 14. Nxe5 {[%emt 0:16:37]} Nxe5 {[%emt 0:01:02]} 15. dxe5 {[%emt 0:00:26]} Qxe5 {[%emt 0:00:45]} 16. Bxc4 {[%emt 0:03:55]} Bf5 {[%emt 0:11:18]} 17. Qb3 {[%emt 0:02:52]} Qc7 {[%emt 0:07:39]} 18. Rfd1 {[%emt 0:08:38]} Rab8 {[%emt 0:06:36]} 19. Rxd8+ {[%emt 0:06:05]} Rxd8 {[%emt 0:00:51]} 20. Bd5 {[%emt 0:02:41]} b6 {[%emt 0:01:56]} 21. Rd1 {[%emt 0:02:34]} c4 {[%emt 0:03:25]} 22. Qb5 {[%emt 0:09:29]} Kh7 {[%emt 0:03:30]} 23. Rd4 {[%emt 0:02:06]} Bd3 {[%emt 0:01:46]} 24. Qa4 {[%emt 0:06:22]} b5 {[%emt 0:01:47]} 25. Qd1 {[%emt 0:02:09]} Kh8 {[%emt 0:01:12]} 26. Bf3 {[%emt 0:01:07]} Rxd4 {[%emt 0:01:13]} 27. exd4 {[%emt 0:01:22]} b4 {[%emt 0:03:43]} 28. Qd2 {[%emt 0:01:10]} a5 {[%emt 0:01:13]} 29. Bd1 {[%emt 0:01:39]} Qc6 {[%emt 0:02:54]} 30. Qb2 {[%emt 0:02:20]} Qd6 {[%emt 0:01:31]} 31. Bc2 {[%emt 0:01:04]} Qg6 {[%emt 0:00:43]} 32. Bd1 {[%emt 0:00:59]} Qd6 {[%emt 0:00:16]} 33. Bc2 {[%emt 0:00:13]} bxc3 {[%emt 0:00:43]} 34. Qxc3 {[%emt 0:00:30]} Bxc2 {[%emt 0:00:09]} 35. Qxc2 {[%emt 0:00:29]} Qxd4 {[%emt 0:00:18]} 36. Qf5 {[%emt 0:01:00]} Qd1+ {[%emt 0:00:42]} 37. Kh2 {[%emt 0:00:19]} Qd3 {[%emt 0:00:24]} 38. Qxa5 {[%emt 0:01:06]} c3 {[%emt 0:00:26]} 39. Qa3 {[%emt 0:00:32]} Qc4 {[%emt 0:01:32]} 40. Qc1 {[%emt 0:00:28]} c2 {[%emt 0:00:27]} 41. a3 {[%emt 0:11:01]} g5 {[%emt 0:13:17]} 42. Kg3 {[%emt 0:01:06]} Qf4+ {[%emt 0:00:46]} 0-1

[Event "DVM U14 2024"]
[Site "Heidelberg"]
[Date "2024.12.29"]
[Round "6"]
[White "Laube, Karl"]
[Black "Nguyen, Bach Khoi"]
[Result "0-1"]
[ECO "D02"]
[WhiteElo "1635"]
[BlackElo "1590"]
[Annotator "NA RC"]
[PlyCount "70"]
[EventDate "2024.12.23"]
[EventType "team-tourn"]
[EventRounds "7"]
[EventCountry "GER"]
[SourceTitle "playchess.com"]
[Source "ChessBase"]
[SourceQuality "1"]
[TimeControl "40/5400+30:1800+30"]

1. d4 {[%emt 0:00:01]} d5 {[%emt 0:00:10]} 2. Bf4 {[%emt 0:00:04]} e6 {[%emt 0:00:09]} 3. e3 {[%emt 0:00:06]} Nf6 {[%emt 0:00:09]} 4. Nf3 {[%emt 0:00:07]} c5 {[%emt 0:00:07]} 5. c4 {[%emt 0:01:24]} Nc6 {[%emt 0:01:06]} 6. Nc3 {[%emt 0:00:34]} Bd6 {[%emt 0:00:47]} 7. Bg3 {[%emt 0:00:19]} O-O {[%emt 0:00:18]} 8. Bd3 {[%emt 0:00:14]} b6 {[%emt 0:01:05]} 9. O-O {[%emt 0:01:43]} Bb7 {[%emt 0:00:59]} 10. Rc1 {[%emt 0:04:18]} Rc8 {[%emt 0:01:57]} 11. a3 {[%emt 0:04:07]} Qe7 {[%emt 0:02:08]} 12. cxd5 {[%emt 0:00:57]} exd5 {[%emt 0:00:16]} 13. Qe2 {[%emt 0:08:13]} Bxg3 {[%emt 0:04:22]} 14. hxg3 {[%emt 0:01:23]} Rfd8 {[%emt 0:00:49]} 15. Rfd1 {[%emt 0:04:09]} Ne4 {[%emt 0:02:05]} 16. Qc2 {[%emt 0:02:41]} f5 {[%emt 0:12:05]} 17. dxc5 {[%emt 0:04:24]} bxc5 {[%emt 0:01:25]} 18. Nd2 {[%emt 0:04:52]} Ne5 {[%emt 0:07:58]} 19. Ndxe4 {[%emt 0:03:57]} fxe4 {[%emt 0:00:43]} 20. Bb5 {[%emt 0:01:53]} Kh8 {[%emt 0:04:07]} 21. Ne2 {[%emt 0:03:25]} a6 {[%emt 0:03:47]} 22. Ba4 {[%emt 0:01:33]} Nd3 {[%emt 0:07:20]} 23. Rb1 {[%emt 0:01:37]} Rc7 {[%emt 0:14:43]} 24. Nf4 {[%emt 0:03:15]} c4 {[%emt 0:01:08]} 25. Qc3 {[%emt 0:02:52]} Nxf4 {[%emt 0:15:19]} 26. gxf4 {[%emt 0:00:43]} Qf6 {[%emt 0:00:00]} 27. Rd4 {[%emt 0:01:40]} Kg8 {[%emt 0:01:48]} 28. Rbd1 {[%emt 0:00:58]} Qb6 {[%emt 0:01:54]} 29. Kf1 {[%emt 0:05:19]} Ba8 {[%emt 0:02:53]} 30. Rxe4 {[%emt 0:04:41]} Rb7 {[%emt 0:04:10]} 31. b4 {[%emt 0:01:15]} dxe4 {[%emt 0:00:38]} 32. Rxd8+ {[%emt 0:00:40]} Qxd8 {[%emt 0:00:13]} 33. Qxc4+ {[%emt 0:00:19]} Kh8 {[%emt 0:00:55]} 34. Qxe4 {[%emt 0:00:08]} Rc7 {[%emt 0:01:09]} 35. Qb1 {[%emt 0:00:58]} Qd2 {[%emt 0:00:45]} 0-1

[Event "DVM U14 2024"]
[Site "Heidelberg"]
[Date "2024.12.29"]
[Round "6"]
[White "Schucht, Adrian"]
[Black "Petzold, Gustav"]
[Result "1-0"]
[ECO "B33"]
[WhiteElo "1617"]
[BlackElo "935"]
[Annotator "NA RC"]
[PlyCount "79"]
[EventDate "2024.12.23"]
[EventType "team-tourn"]
[EventRounds "7"]
[EventCountry "GER"]
[SourceTitle "playchess.com"]
[Source "ChessBase"]
[SourceQuality "1"]
[TimeControl "40/5400+30:1800+30"]

1. e4 {[%emt 0:00:09]} c5 {[%emt 0:00:03]} 2. Nf3 {[%emt 0:00:04]} Nc6 {[%emt 0:00:08]} 3. d4 {[%emt 0:00:04]} cxd4 {[%emt 0:00:04]} 4. Nxd4 {[%emt 0:00:05]} Nf6 {[%emt 0:00:04]} 5. Nc3 {[%emt 0:00:08]} e5 {[%emt 0:00:04]} 6. Ndb5 {[%emt 0:00:08]} d6 {[%emt 0:00:07]} 7. Nd5 {[%emt 0:00:12]} Nxd5 {[%emt 0:03:16]} 8. exd5 {[%emt 0:00:09]} Ne7 {[%emt 0:02:31]} 9. c4 {[%emt 0:00:11]} a6 {[%emt 0:01:00]} 10. Qa4 {[%emt 0:00:07]} Nc6 {[%emt 0:10:10]} 11. dxc6 {[%emt 0:01:26]} bxc6 {[%emt 0:00:06]} 12. Nc3 {[%emt 0:01:30]} Qc7 {[%emt 0:03:25]} 13. Be3 {[%emt 0:02:21]} Be7 {[%emt 0:01:54]} 14. Nd5 {[%emt 0:04:27]} Qb7 {[%emt 0:02:30]} 15. Nb6 {[%emt 0:01:20]} Rb8 {[%emt 0:01:03]} 16. Nxc8 {[%emt 0:00:12]} Rxc8 {[%emt 0:00:25]} 17. Qc2 {[%emt 0:00:37]} O-O {[%emt 0:00:48]} 18. Bd3 {[%emt 0:01:34]} Rb8 {[%emt 0:00:44]} 19. b3 {[%emt 0:03:12]} g6 {[%emt 0:00:32]} 20. Bh6 {[%emt 0:00:30]} Rfd8 {[%emt 0:00:17]} 21. Qe2 {[%emt 0:03:34]} Bf6 {[%emt 0:01:31]} 22. Rd1 {[%emt 0:01:34]} Qe7 {[%emt 0:01:48]} 23. O-O {[%emt 0:01:32]} d5 {[%emt 0:03:15]} 24. cxd5 {[%emt 0:01:06]} cxd5 {[%emt 0:02:08]} 25. Bxa6 {[%emt 0:03:23]} Rd6 {[%emt 0:00:41]} 26. Rc1 {[%emt 0:01:58]} Rdd8 {[%emt 0:02:29]} 27. Rc6 {[%emt 0:01:48]} Ra8 {[%emt 0:02:20]} 28. Rfc1 {[%emt 0:02:10]} Bg7 {[%emt 0:01:47]} 29. Bxg7 {[%emt 0:02:04]} Kxg7 {[%emt 0:00:12]} 30. Rc7 {[%emt 0:04:35]} Qe6 {[%emt 0:01:00]} 31. R1c6 {[%emt 0:03:59]} Qf5 {[%emt 0:00:38]} 32. Qf3 {[%emt 0:02:04]} Qxf3 {[%emt 0:03:53]} 33. gxf3 {[%emt 0:01:11]} d4 {[%emt 0:00:01]} 34. Bc4 {[%emt 0:02:17]} Kh6 {[%emt 0:05:13]} 35. Rxf7 {[%emt 0:04:06]} d3 {[%emt 0:00:55]} 36. Bxd3 {[%emt 0:00:12]} Rxd3 {[%emt 0:00:20]} 37. Rcc7 {[%emt 0:00:32]} Rxa2 {[%emt 0:00:47]} 38. Rxh7+ {[%emt 0:00:29]} Kg5 {[%emt 0:00:01]} 39. Rcf7 {[%emt 0:00:32]} Rxb3 {[%emt 0:00:23]} 40. h4# {[%emt 0:00:38]} 1-0

[Event "DVM U14 2024"]
[Site "Heidelberg"]
[Date "2024.12.29"]
[Round "6"]
[White "Zhu, Timo Kaiheng"]
[Black "Derhay, Davyd"]
[Result "0-1"]
[ECO "D02"]
[WhiteElo "1615"]
[BlackElo "1665"]
[Annotator "NA RC"]
[PlyCount "82"]
[EventDate "2024.12.23"]
[EventType "team-tourn"]
[EventRounds "7"]
[EventCountry "GER"]
[SourceTitle "playchess.com"]
[Source "ChessBase"]
[SourceQuality "1"]
[TimeControl "40/5400+30:1800+30"]

1. d4 {[%emt 0:00:01]} d5 {[%emt 0:00:03]} 2. Bf4 {[%emt 0:00:10]} Nf6 {[%emt 0:00:18]} 3. e3 {[%emt 0:00:05]} c5 {[%emt 0:00:11]} 4. Nf3 {[%emt 0:00:07]} Nc6 {[%emt 0:00:17]} 5. Nbd2 {[%emt 0:00:06]} Qb6 {[%emt 0:01:25]} 6. dxc5 {[%emt 0:00:05]} Qxc5 {[%emt 0:01:07]} 7. Bd3 {[%emt 0:00:41]} Bg4 {[%emt 0:00:41]} 8. h3 {[%emt 0:00:43]} Bh5 {[%emt 0:00:35]} 9. g4 {[%emt 0:01:41]} Bg6 {[%emt 0:00:09]} 10. Ne5 {[%emt 0:04:08]} Nxe5 {[%emt 0:02:47]} 11. Bxe5 {[%emt 0:00:09]} Nd7 {[%emt 0:00:30]} 12. Bg3 {[%emt 0:00:41]} e5 {[%emt 0:01:48]} 13. Nb3 {[%emt 0:02:11]} Qc6 {[%emt 0:01:39]} 14. O-O {[%emt 0:01:08]} Be7 {[%emt 0:02:46]} 15. Rc1 {[%emt 0:03:31]} b5 {[%emt 0:12:33]} 16. c3 {[%emt 0:04:18]} O-O {[%emt 0:01:31]} 17. Re1 {[%emt 0:02:26]} f5 {[%emt 0:02:41]} 18. Qe2 {[%emt 0:04:30]} fxg4 {[%emt 0:12:37]} 19. Bxb5 {[%emt 0:00:48]} Qe6 {[%emt 0:00:34]} 20. hxg4 {[%emt 0:02:13]} Nf6 {[%emt 0:04:44]} 21. f3 {[%emt 0:02:29]} a6 {[%emt 0:01:34]} 22. Bd3 {[%emt 0:01:34]} e4 {[%emt 0:00:35]} 23. Nd4 {[%emt 0:02:04]} Qd7 {[%emt 0:01:49]} 24. fxe4 {[%emt 0:00:48]} Bxe4 {[%emt 0:00:44]} 25. Bxe4 {[%emt 0:02:45]} Nxe4 {[%emt 0:01:10]} 26. Nf5 {[%emt 0:02:38]} Nxg3 {[%emt 0:09:34]} 27. Nxg3 {[%emt 0:00:16]} Bh4 {[%emt 0:00:08]} 28. Kg2 {[%emt 0:01:00]} Qc7 {[%emt 0:01:23]} 29. Nf5 {[%emt 0:01:01]} Bxe1 {[%emt 0:00:36]} 30. Rxe1 {[%emt 0:00:10]} Qe5 {[%emt 0:01:00]} 31. Nd4 {[%emt 0:05:21]} Rf6 {[%emt 0:01:10]} 32. Nf3 {[%emt 0:01:57]} Qe4 {[%emt 0:00:37]} 33. Kg3 {[%emt 0:00:33]} Rg6 {[%emt 0:01:05]} 34. Nd4 {[%emt 0:00:58]} h5 {[%emt 0:00:26]} 35. Rf1 {[%emt 0:02:03]} Rxg4+ {[%emt 0:00:35]} 36. Kh3 {[%emt 0:00:25]} Re8 {[%emt 0:00:41]} 37. Nf5 {[%emt 0:01:10]} Qe6 {[%emt 0:03:22]} 38. Qf3 {[%emt 0:01:38]} Re4 {[%emt 0:01:23]} 39. Kg3 {[%emt 0:03:36]} g6 {[%emt 0:01:16]} 40. Nd4 {[%emt 0:02:47]} Qe5+ {[%emt 0:01:38]} 41. Kg2 {[%emt 0:31:07]} Qg5+ {[%emt 0:31:43]} 0-1

[Event "DVM U14 2024"]
[Site "Heidelberg"]
[Date "2024.12.29"]
[Round "6"]
[White "Schirmer, Enias"]
[Black "Pazar, Ubeyd"]
[Result "1/2-1/2"]
[ECO "B84"]
[WhiteElo "1594"]
[BlackElo "1669"]
[Annotator "NA RC"]
[PlyCount "118"]
[EventDate "2024.12.23"]
[EventType "team-tourn"]
[EventRounds "7"]
[EventCountry "GER"]
[SourceTitle "playchess.com"]
[Source "ChessBase"]
[SourceQuality "1"]
[TimeControl "40/5400+30:1800+30"]

1. e4 {[%emt 0:00:03]} c5 {[%emt 0:00:02]} 2. Nf3 {[%emt 0:00:06]} d6 {[%emt 0:00:06]} 3. d4 {[%emt 0:00:13]} cxd4 {[%emt 0:00:03]} 4. Nxd4 {[%emt 0:00:05]} Nf6 {[%emt 0:00:09]} 5. Nc3 {[%emt 0:00:15]} a6 {[%emt 0:00:03]} 6. Be3 {[%emt 0:00:45]} e6 {[%emt 0:00:26]} 7. Be2 {[%emt 0:00:34]} Nbd7 {[%emt 0:00:18]} 8. O-O {[%emt 0:01:03]} Qc7 {[%emt 0:00:27]} 9. Qd2 {[%emt 0:02:58]} Be7 {[%emt 0:00:54]} 10. Kh1 {[%emt 0:03:57]} b5 {[%emt 0:01:00]} 11. a3 {[%emt 0:04:09]} Bb7 {[%emt 0:00:30]} 12. f3 {[%emt 0:04:36]} Ne5 {[%emt 0:01:41]} 13. h3 {[%emt 0:14:34]} Rc8 {[%emt 0:02:24]} 14. f4 {[%emt 0:02:01]} Nc4 {[%emt 0:00:25]} 15. Bxc4 {[%emt 0:01:03]} Qxc4 {[%emt 0:00:07]} 16. Qd3 {[%emt 0:02:28]} d5 {[%emt 0:03:34]} 17. e5 {[%emt 0:03:03]} Nd7 {[%emt 0:00:17]} 18. Nce2 {[%emt 0:03:11]} Nc5 {[%emt 0:00:43]} 19. Qd1 {[%emt 0:03:19]} Ne4 {[%emt 0:01:16]} 20. c3 {[%emt 0:01:56]} O-O {[%emt 0:01:50]} 21. Nf3 {[%emt 0:04:10]} f6 {[%emt 0:06:18]} 22. Nd2 {[%emt 0:07:43]} Qxe2 {[%emt 0:00:52]} 23. Qxe2 {[%emt 0:02:35]} Ng3+ {[%emt 0:00:05]} 24. Kh2 {[%emt 0:00:10]} Nxe2 {[%emt 0:00:05]} 25. Rae1 {[%emt 0:01:14]} Nxc3 {[%emt 0:00:26]} 26. bxc3 {[%emt 0:00:28]} Rxc3 {[%emt 0:00:05]} 27. Bd4 {[%emt 0:01:55]} Rxa3 {[%emt 0:00:28]} 28. Rc1 {[%emt 0:00:25]} Bd8 {[%emt 0:01:19]} 29. Bc5 {[%emt 0:01:49]} Ra2 {[%emt 0:01:35]} 30. Bxf8 {[%emt 0:00:30]} Kxf8 {[%emt 0:00:09]} 31. Nf3 {[%emt 0:05:29]} d4 {[%emt 0:00:47]} 32. Kh1 {[%emt 0:00:45]} d3 {[%emt 0:02:35]} 33. Rcd1 {[%emt 0:01:55]} Be4 {[%emt 0:00:46]} 34. Ra1 {[%emt 0:03:44]} Rxa1 {[%emt 0:02:52]} 35. Rxa1 {[%emt 0:00:05]} Bxf3 {[%emt 0:00:03]} 36. gxf3 {[%emt 0:00:19]} d2 {[%emt 0:00:04]} 37. Kg2 {[%emt 0:00:34]} b4 {[%emt 0:01:39]} 38. Kf1 {[%emt 0:00:24]} a5 {[%emt 0:00:32]} 39. Ke2 {[%emt 0:00:27]} Kf7 {[%emt 0:01:28]} 40. Rg1 {[%emt 0:19:11]} a4 {[%emt 0:01:16]} 41. Kxd2 {[%emt 0:30:30]} a3 {[%emt 0:30:21]} 42. Kc2 {[%emt 0:00:24]} g6 {[%emt 0:00:47]} 43. Rd1 {[%emt 0:00:00]} fxe5 {[%emt 0:00:00]} 44. Rxd8 {[%emt 0:00:00]} exf4 {[%emt 0:00:00]} 45. Rd4 {[%emt 0:00:00]} e5 {[%emt 0:00:00]} 46. Rxb4 {[%emt 0:00:00]} Kf6 {[%emt 0:00:00]} 47. Re4 {[%emt 0:00:00]} Kf5 {[%emt 0:00:00]} 48. Kb3 {[%emt 0:00:00]} h5 {[%emt 0:00:00]} 49. Kxa3 {[%emt 0:00:00]} g5 {[%emt 0:00:00]} 50. Re1 {[%emt 0:05:26]} g4 {[%emt 0:00:00]} 51. hxg4+ {[%emt 0:01:23]} hxg4 {[%emt 0:00:00]} 52. fxg4+ {[%emt 0:00:17]} Kxg4 {[%emt 0:00:00]} 53. Rxe5 {[%emt 0:00:19]} f3 {[%emt 0:00:00]} 54. Re8 {[%emt 0:00:42]} f2 {[%emt 0:00:00]} 55. Rg8+ {[%emt 0:00:37]} Kh3 {[%emt 0:00:00]} 56. Rh8+ {[%emt 0:00:08]} Kg2 {[%emt 0:00:00]} 57. Rg8+ {[%emt 0:00:14]} Kh1 {[%emt 0:00:00]} 58. Rf8 {[%emt 0:00:33]} Kg1 {[%emt 0:00:00]} 59. Rg8+ {[%emt 0:00:14]} Kh1 {[%emt 0:00:00]} 1/2-1/2

[Event "DVM U14 2024"]
[Site "Heidelberg"]
[Date "2024.12.29"]
[Round "6"]
[White "Roessler, Leo"]
[Black "Ensslen, Jakob"]
[Result "1/2-1/2"]
[ECO "B22"]
[WhiteElo "1589"]
[BlackElo "1714"]
[Annotator "NA RC"]
[PlyCount "113"]
[EventDate "2024.12.23"]
[EventType "team-tourn"]
[EventRounds "7"]
[EventCountry "GER"]
[SourceTitle "playchess.com"]
[Source "ChessBase"]
[SourceQuality "1"]
[TimeControl "40/5400+30:1800+30"]

1. e4 {[%emt 0:00:01]} c5 {[%emt 0:00:05]} 2. c3 {[%emt 0:00:13]} Nf6 {[%emt 0:00:06]} 3. e5 {[%emt 0:00:07]} Nd5 {[%emt 0:00:07]} 4. d4 {[%emt 0:00:08]} cxd4 {[%emt 0:01:14]} 5. Nf3 {[%emt 0:01:40]} Nc6 {[%emt 0:02:12]} 6. cxd4 {[%emt 0:00:54]} d6 {[%emt 0:02:46]} 7. Bc4 {[%emt 0:02:38]} Nb6 {[%emt 0:01:23]} 8. Bb3 {[%emt 0:03:23]} g6 {[%emt 0:03:32]} 9. Bf4 {[%emt 0:04:19]} d5 {[%emt 0:04:13]} 10. O-O {[%emt 0:01:33]} Bg7 {[%emt 0:05:10]} 11. Nc3 {[%emt 0:01:39]} O-O {[%emt 0:03:56]} 12. a4 {[%emt 0:04:32]} a5 {[%emt 0:04:59]} 13. Nb5 {[%emt 0:04:23]} Bf5 {[%emt 0:05:55]} 14. Nh4 {[%emt 0:09:45]} Be6 {[%emt 0:05:12]} 15. Nf3 {[%emt 0:08:21]} Rc8 {[%emt 0:03:43]} 16. Rc1 {[%emt 0:07:32]} Qd7 {[%emt 0:04:51]} 17. Qd2 {[%emt 0:04:50]} Nb4 {[%emt 0:07:58]} 18. Rc3 {[%emt 0:08:07]} Nc4 {[%emt 0:06:49]} 19. Bxc4 {[%emt 0:02:02]} dxc4 {[%emt 0:03:11]} 20. h3 {[%emt 0:12:11]} Nd3 {[%emt 0:05:53]} 21. Be3 {[%emt 0:02:28]} f6 {[%emt 0:04:50]} 22. b3 {[%emt 0:05:38]} fxe5 {[%emt 0:05:22]} 23. bxc4 {[%emt 0:02:08]} Bxh3 {[%emt 0:10:30]} 24. Ng5 {[%emt 0:07:56]} Bf5 {[%emt 0:01:02]} 25. Rxd3 {[%emt 0:00:19]} Bxd3 {[%emt 0:00:31]} 26. Qxd3 {[%emt 0:00:14]} exd4 {[%emt 0:00:54]} 27. Bd2 {[%emt 0:01:47]} b6 {[%emt 0:01:20]} 28. Qb3 {[%emt 0:01:01]} e6 {[%emt 0:03:13]} 29. Qh3 {[%emt 0:02:04]} Bf6 {[%emt 0:01:31]} 30. Qxe6+ {[%emt 0:01:32]} Qxe6 {[%emt 0:00:05]} 31. Nxe6 {[%emt 0:00:09]} Rxc4 {[%emt 0:01:50]} 32. Nxf8 {[%emt 0:00:22]} Kxf8 {[%emt 0:00:04]} 33. Bh6+ {[%emt 0:01:27]} Bg7 {[%emt 0:00:33]} 34. Bxg7+ {[%emt 0:00:13]} Kxg7 {[%emt 0:00:05]} 35. Ra1 {[%emt 0:00:37]} Kf6 {[%emt 0:00:37]} 36. Kf1 {[%emt 0:00:09]} Ke5 {[%emt 0:00:11]} 37. Ke2 {[%emt 0:00:53]} Kd5 {[%emt 0:01:26]} 38. Kd3 {[%emt 0:00:41]} h5 {[%emt 0:00:28]} 39. f3 {[%emt 0:00:54]} g5 {[%emt 0:00:27]} 40. Ra2 {[%emt 0:01:09]} h4 {[%emt 0:01:05]} 41. Ra1 {[%emt 0:02:15]} Rb4 {[%emt 0:07:46]} 42. Kc2 {[%emt 0:08:11]} Ke5 {[%emt 0:07:59]} 43. Ra2 {[%emt 0:05:02]} Kf4 {[%emt 0:05:12]} 44. Kd3 {[%emt 0:01:55]} h3 {[%emt 0:00:57]} 45. gxh3 {[%emt 0:01:48]} Rb3+ {[%emt 0:05:15]} 46. Kxd4 {[%emt 0:02:56]} Rxf3 {[%emt 0:01:13]} 47. Kd5 {[%emt 0:00:29]} Rxh3 {[%emt 0:00:53]} 48. Kc6 {[%emt 0:00:45]} Rh6+ {[%emt 0:00:12]} 49. Kb7 {[%emt 0:00:15]} g4 {[%emt 0:01:19]} 50. Nd4 {[%emt 0:00:22]} Rd6 {[%emt 0:03:39]} 51. Nc6 {[%emt 0:01:24]} g3 {[%emt 0:00:48]} 52. Kxb6 {[%emt 0:00:44]} Kf3 {[%emt 0:00:54]} 53. Ra3+ {[%emt 0:00:11]} Kf2 {[%emt 0:00:52]} 54. Rxg3 {[%emt 0:00:08]} Kxg3 {[%emt 0:00:09]} 55. Kc5 {[%emt 0:00:27]} Rh6 {[%emt 0:00:55]} 56. Nxa5 {[%emt 0:01:53]} Ra6 {[%emt 0:00:30]} 57. Kb5 {[%emt 0:00:39]} 1/2-1/2

[Event "DVM U14 2024"]
[Site "Heidelberg"]
[Date "2024.12.29"]
[Round "6"]
[White "Scharff, Oskar"]
[Black "Bemmann, Carlo"]
[Result "1-0"]
[ECO "B13"]
[WhiteElo "1583"]
[BlackElo "1757"]
[Annotator "NA RC"]
[PlyCount "75"]
[EventDate "2024.12.23"]
[EventType "team-tourn"]
[EventRounds "7"]
[EventCountry "GER"]
[SourceTitle "playchess.com"]
[Source "ChessBase"]
[SourceQuality "1"]
[TimeControl "40/5400+30:1800+30"]

1. e4 {[%emt 0:00:06]} c6 {[%emt 0:00:07]} 2. d4 {[%emt 0:00:08]} d5 {[%emt 0:00:05]} 3. exd5 {[%emt 0:00:14]} cxd5 {[%emt 0:00:08]} 4. Bd3 {[%emt 0:00:19]} Nf6 {[%emt 0:01:54]} 5. Bf4 {[%emt 0:00:35]} Bg4 {[%emt 0:02:40]} 6. Nf3 {[%emt 0:02:29]} e6 {[%emt 0:00:27]} 7. h3 {[%emt 0:00:52]} Bh5 {[%emt 0:01:20]} 8. c3 {[%emt 0:00:19]} Nc6 {[%emt 0:03:03]} 9. O-O {[%emt 0:00:39]} Bd6 {[%emt 0:01:05]} 10. Bxd6 {[%emt 0:00:36]} Qxd6 {[%emt 0:00:08]} 11. Nbd2 {[%emt 0:01:03]} O-O {[%emt 0:01:04]} 12. Re1 {[%emt 0:01:19]} Rac8 {[%emt 0:08:47]} 13. a4 {[%emt 0:19:01]} Bg6 {[%emt 0:07:52]} 14. Bxg6 {[%emt 0:01:20]} hxg6 {[%emt 0:00:08]} 15. Nb3 {[%emt 0:04:17]} Nd7 {[%emt 0:09:14]} 16. Qd3 {[%emt 0:06:09]} Rb8 {[%emt 0:04:04]} 17. Nbd2 {[%emt 0:06:46]} Rfc8 {[%emt 0:04:53]} 18. a5 {[%emt 0:07:13]} b5 {[%emt 0:05:24]} 19. axb6 {[%emt 0:03:08]} Rxb6 {[%emt 0:00:47]} 20. b4 {[%emt 0:02:06]} Qc7 {[%emt 0:03:22]} 21. Nb3 {[%emt 0:01:12]} Ne7 {[%emt 0:06:43]} 22. Nc5 {[%emt 0:00:43]} Nxc5 {[%emt 0:04:19]} 23. dxc5 {[%emt 0:00:53]} Rbb8 {[%emt 0:02:20]} 24. Nd4 {[%emt 0:02:37]} Ra8 {[%emt 0:03:47]} 25. Nb5 {[%emt 0:01:26]} Qb8 {[%emt 0:01:27]} 26. Ra4 {[%emt 0:06:07]} a5 {[%emt 0:10:44]} 27. Rea1 {[%emt 0:07:12]} Nc6 {[%emt 0:01:39]} 28. Nd6 {[%emt 0:01:10]} Rc7 {[%emt 0:00:57]} 29. b5 {[%emt 0:18:32]} Ne5 {[%emt 0:00:44]} 30. Qd4 {[%emt 0:00:31]} f6 {[%emt 0:01:02]} 31. Rxa5 {[%emt 0:00:32]} Rxa5 {[%emt 0:01:05]} 32. Rxa5 {[%emt 0:00:07]} Nf7 {[%emt 0:01:04]} 33. Nxf7 {[%emt 0:00:54]} Kxf7 {[%emt 0:00:07]} 34. b6 {[%emt 0:00:40]} Rb7 {[%emt 0:00:36]} 35. Qa4 {[%emt 0:00:15]} Qe5 {[%emt 0:01:53]} 36. Ra7 {[%emt 0:01:04]} Rxa7 {[%emt 0:01:46]} 37. bxa7 {[%emt 0:00:26]} Qh2+ {[%emt 0:02:49]} 38. Kxh2 {[%emt 0:00:13]} 1-0

[Event "DVM U14 2024"]
[Site "Heidelberg"]
[Date "2024.12.29"]
[Round "6"]
[White "Splitt, Albert"]
[Black "Kovalenko, Andrii"]
[Result "1-0"]
[ECO "D00"]
[WhiteElo "1571"]
[BlackElo "1211"]
[Annotator "NA RC"]
[PlyCount "49"]
[EventDate "2024.12.23"]
[EventType "team-tourn"]
[EventRounds "7"]
[EventCountry "GER"]
[SourceTitle "playchess.com"]
[Source "ChessBase"]
[SourceQuality "1"]
[TimeControl "40/5400+30:1800+30"]

1. d4 {[%emt 0:00:05]} d5 {[%emt 0:00:05]} 2. Nc3 {[%emt 0:00:10]} c5 {[%emt 0:00:10]} 3. e4 {[%emt 0:04:28]} dxe4 {[%emt 0:00:34]} 4. Nxe4 {[%emt 0:01:48]} Qxd4 {[%emt 0:01:28]} 5. Qxd4 {[%emt 0:01:21]} cxd4 {[%emt 0:00:06]} 6. Nf3 {[%emt 0:00:42]} Nc6 {[%emt 0:00:22]} 7. Bb5 {[%emt 0:00:32]} Bd7 {[%emt 0:00:06]} 8. Nc5 {[%emt 0:01:11]} a6 {[%emt 0:01:03]} 9. Bxc6 {[%emt 0:02:28]} Bxc6 {[%emt 0:00:12]} 10. Nxd4 {[%emt 0:00:53]} Bxg2 {[%emt 0:00:06]} 11. Rg1 {[%emt 0:00:34]} Bd5 {[%emt 0:00:05]} 12. Be3 {[%emt 0:04:55]} e5 {[%emt 0:00:42]} 13. Ndb3 {[%emt 0:00:42]} Nf6 {[%emt 0:01:04]} 14. O-O-O {[%emt 0:00:42]} Bxc5 {[%emt 0:00:46]} 15. Bxc5 {[%emt 0:00:13]} Bxb3 {[%emt 0:00:28]} 16. axb3 {[%emt 0:00:19]} Ne4 {[%emt 0:00:27]} 17. Bb6 {[%emt 0:00:52]} O-O {[%emt 0:00:23]} 18. Rge1 {[%emt 0:00:26]} f5 {[%emt 0:01:00]} 19. Rd7 {[%emt 0:10:51]} Rf7 {[%emt 0:00:53]} 20. Rd5 {[%emt 0:00:45]} Re8 {[%emt 0:01:13]} 21. b4 {[%emt 0:07:37]} Re6 {[%emt 0:02:53]} 22. Bc5 {[%emt 0:01:22]} b6 {[%emt 0:00:36]} 23. Rd8+ {[%emt 0:00:12]} Re8 {[%emt 0:00:49]} 24. Rxe8+ {[%emt 0:00:06]} Rf8 {[%emt 0:00:02]} 25. Rxf8# {[%emt 0:00:12]} 1-0